[Event "Titled Tuesday Blitz August 17 2021"]
[White "Ayushh, Ravikumar"]
[Black "Estrada Nieto, Julian"]
[WhiteFideId "35039482"]
[BlackFideId "5101018"]
[WhiteElo "1441"]
[BlackElo "2270"]
[Result "1-0"]
[Round "10"]
[TimeControl "180+1"]
[Date "2021.08.18"]
[WhiteClock "0:00:08"]
[BlackClock "0:00:08"]

1. Nf3 {[%clk 0:02:45]}  d5 {[%clk 0:02:59]} 2. d4 {[%clk 0:02:46]}  Nf6 {[%clk 0:02:59]} 3. g3 {[%clk 0:02:44]}  c6 {[%clk 0:02:58]} 4. Bg2 {[%clk 0:02:45]}  Bf5 {[%clk 0:02:59]} 5. O-O {[%clk 0:02:44]}  Nbd7 {[%clk 0:03:00]} 6. b3 {[%clk 0:02:45]}  e6 {[%clk 0:02:59]} 7. Bb2 {[%clk 0:02:45]}  Bd6 {[%clk 0:02:56]} 8. Nbd2 {[%clk 0:02:40]}  O-O {[%clk 0:02:53]} 9. c4 {[%clk 0:02:40]}  h6 {[%clk 0:02:49]} 10. Ne5 {[%clk 0:02:37]}  Qe7 {[%clk 0:02:46]} 11. Qc1 {[%clk 0:02:29]}  a5 {[%clk 0:02:44]} 12. a3 {[%clk 0:02:25]}  Rfc8 {[%clk 0:02:40]} 13. Nxd7 {[%clk 0:02:05]}  Qxd7 {[%clk 0:02:32]} 14. c5 {[%clk 0:02:04]}  Bc7 {[%clk 0:02:25]} 15. b4 {[%clk 0:02:02]}  Re8 {[%clk 0:02:15]} 16. Nf3 {[%clk 0:01:49]}  Ne4 {[%clk 0:02:04]} 17. Ne5 {[%clk 0:01:17]}  Qe7 {[%clk 0:02:00]} 18. Nd3 {[%clk 0:01:15]}  Ng5 {[%clk 0:01:43]} 19. h4 {[%clk 0:01:10]}  Ne4 {[%clk 0:01:41]} 20. Qe3 {[%clk 0:01:05]}  b5 {[%clk 0:01:28]} 21. cxb6 {[%clk 0:00:56]}  Bxb6 {[%clk 0:01:28]} 22. Nc5 {[%clk 0:00:56]}  Nxc5 {[%clk 0:01:07]} 23. dxc5 {[%clk 0:00:57]}  Bc7 {[%clk 0:01:07]} 24. Be5 {[%clk 0:00:51]}  Bxe5 {[%clk 0:01:05]} 25. Qxe5 {[%clk 0:00:52]}  f6 {[%clk 0:01:04]} 26. Qf4 {[%clk 0:00:45]}  g5 {[%clk 0:01:00]} 27. hxg5 {[%clk 0:00:43]}  hxg5 {[%clk 0:01:00]} 28. Qd2 {[%clk 0:00:41]}  Kg7 {[%clk 0:00:57]} 29. f4 {[%clk 0:00:38]}  g4 {[%clk 0:00:51]} 30. Rfe1 {[%clk 0:00:34]}  Red8 {[%clk 0:00:39]} 31. Qd4 {[%clk 0:00:24]}  e5 {[%clk 0:00:36]} 32. fxe5 {[%clk 0:00:18]}  Qxe5 {[%clk 0:00:29]} 33. Qxe5 {[%clk 0:00:17]}  fxe5 {[%clk 0:00:29]} 34. e4 {[%clk 0:00:17]}  dxe4 {[%clk 0:00:27]} 35. Bxe4 {[%clk 0:00:18]}  Be6 {[%clk 0:00:17]} 36. Bxc6 {[%clk 0:00:16]}  Rac8 {[%clk 0:00:16]} 37. b5 {[%clk 0:00:16]}  Bd5 {[%clk 0:00:15]} 38. Rxe5 {[%clk 0:00:13]}  Bxc6 {[%clk 0:00:14]} 39. bxc6 {[%clk 0:00:14]}  Rxc6 {[%clk 0:00:14]} 40. Rc1 {[%clk 0:00:07]}  Rdc8 {[%clk 0:00:13]} 41. Rg5+ {[%clk 0:00:07]}  Kf6 {[%clk 0:00:13]} 42. Rxg4 {[%clk 0:00:07]}  Rxc5 {[%clk 0:00:14]} 43. Rxc5 {[%clk 0:00:08]}  Rxc5 {[%clk 0:00:14]} 44. Ra4 {[%clk 0:00:08]}  Kg5 {[%clk 0:00:13]} 45. Kg2 {[%clk 0:00:09]}  Rb5 {[%clk 0:00:12]} 46. Kh3 {[%clk 0:00:09]}  Kh5 {[%clk 0:00:12]} 47. Rg4 {[%clk 0:00:09]}  Rb3 {[%clk 0:00:10]} 48. Rh4+ {[%clk 0:00:10]}  Kg5 {[%clk 0:00:10]} 49. Ra4 {[%clk 0:00:11]}  Rb5 {[%clk 0:00:10]} 50. Rg4+ {[%clk 0:00:09]}  Kh5 {[%clk 0:00:09]} 51. a4 {[%clk 0:00:09]}  Rc5 {[%clk 0:00:09]} 52. Rf4 {[%clk 0:00:06]}  Kg5 {[%clk 0:00:08]} 53. Rg4+ {[%clk 0:00:05]}  Kh5 {[%clk 0:00:08]} 54. Rd4 {[%clk 0:00:04]}  Kg5 {[%clk 0:00:07]} 55. Rd3 {[%clk 0:00:04]}  Rc4 {[%clk 0:00:06]} 56. Rd5+ {[%clk 0:00:04]}  Kg6 {[%clk 0:00:05]} 57. Rxa5 {[%clk 0:00:05]}  Rc3 {[%clk 0:00:05]} 58. Ra8 {[%clk 0:00:05]}  Ra3 {[%clk 0:00:04]} 59. a5 {[%clk 0:00:05]}  Kg5 {[%clk 0:00:05]} 60. a6 {[%clk 0:00:04]}  Ra1 {[%clk 0:00:04]} 61. a7 {[%clk 0:00:03]}  Kg6 {[%clk 0:00:04]} 62. Rg8+ {[%clk 0:00:03]}  Kh7 {[%clk 0:00:04]} 63. a8=Q {[%clk 0:00:04]}  Rxa8 {[%clk 0:00:04]} 64. Rxa8 {[%clk 0:00:05]}  Kg7 {[%clk 0:00:05]} 65. Ra6 {[%clk 0:00:05]}  Kh7 {[%clk 0:00:06]} 66. Kg4 {[%clk 0:00:06]}  Kg7 {[%clk 0:00:07]} 67. Kg5 {[%clk 0:00:07]}  Kh7 {[%clk 0:00:08]} 68. Ra7+ {[%clk 0:00:08]} 1-0


[Site "https://www.chess.com"]

[Event "Titled Tuesday Blitz August 17 2021"]
[White "Babiy, Olga"]
[Black "Munkhzul, Davaakhuu"]
[WhiteFideId "14117258"]
[BlackFideId "4902815"]
[WhiteElo "2253"]
[BlackElo "1957"]
[Result "1-0"]
[Round "10"]
[TimeControl "180+1"]
[Date "2021.08.17"]
[WhiteClock "0:00:26"]
[BlackClock "0:00:03"]

1. d4 {[%clk 0:02:59]}  d5 {[%clk 0:02:58]} 2. Bf4 {[%clk 0:02:58]}  Nf6 {[%clk 0:02:58]} 3. e3 {[%clk 0:02:58]}  e6 {[%clk 0:02:59]} 4. Nf3 {[%clk 0:02:55]}  Bd6 {[%clk 0:02:56]} 5. Nbd2 {[%clk 0:02:52]}  Bxf4 {[%clk 0:02:51]} 6. exf4 {[%clk 0:02:52]}  c5 {[%clk 0:02:49]} 7. dxc5 {[%clk 0:02:42]}  Qc7 {[%clk 0:02:48]} 8. Ne5 {[%clk 0:02:32]}  Qxc5 {[%clk 0:02:45]} 9. Bd3 {[%clk 0:02:33]}  O-O {[%clk 0:02:41]} 10. O-O {[%clk 0:02:33]}  Nbd7 {[%clk 0:02:38]} 11. Ndf3 {[%clk 0:02:33]}  Qb4 {[%clk 0:02:34]} 12. Qc1 {[%clk 0:02:19]}  h6 {[%clk 0:02:23]} 13. c3 {[%clk 0:02:16]}  Qd6 {[%clk 0:02:12]} 14. Re1 {[%clk 0:02:17]}  Nc5 {[%clk 0:02:08]} 15. Bc2 {[%clk 0:02:10]}  Nce4 {[%clk 0:02:03]} 16. Qe3 {[%clk 0:02:03]}  b6 {[%clk 0:01:58]} 17. Rad1 {[%clk 0:02:03]}  Qc7 {[%clk 0:01:52]} 18. Nd4 {[%clk 0:01:54]}  Bb7 {[%clk 0:01:46]} 19. g4 {[%clk 0:01:32]}  Nd6 {[%clk 0:01:30]} 20. Qd3 {[%clk 0:01:28]}  a5 {[%clk 0:01:05]} 21. Bb1 {[%clk 0:01:28]}  Nde4 {[%clk 0:00:53]} 22. f3 {[%clk 0:01:28]}  Nc5 {[%clk 0:00:51]} 23. Qc2 {[%clk 0:01:29]}  g5 {[%clk 0:00:50]} 24. fxg5 {[%clk 0:01:21]}  hxg5 {[%clk 0:00:51]} 25. Qd2 {[%clk 0:01:22]}  Nh7 {[%clk 0:00:42]} 26. Bxh7+ {[%clk 0:01:22]}  Kxh7 {[%clk 0:00:43]} 27. Qxg5 {[%clk 0:01:22]}  Rg8 {[%clk 0:00:41]} 28. Qf6 {[%clk 0:01:11]}  Rg7 {[%clk 0:00:33]} 29. g5 {[%clk 0:01:08]}  Qd8 {[%clk 0:00:28]} 30. Qh6+ {[%clk 0:01:07]}  Kg8 {[%clk 0:00:28]} 31. g6 {[%clk 0:00:53]}  Qf6 {[%clk 0:00:16]} 32. Rd2 {[%clk 0:00:42]}  fxg6 {[%clk 0:00:15]} 33. Rg2 {[%clk 0:00:37]}  Rf8 {[%clk 0:00:12]} 34. Nxg6 {[%clk 0:00:33]}  Rh7 {[%clk 0:00:05]} 35. Nxf8+ {[%clk 0:00:27]}  Kf7 {[%clk 0:00:03]} 36. Qxh7+ {[%clk 0:00:26]} 1-0


[Site "https://www.chess.com"]

[Event "Titled Tuesday Blitz August 17 2021"]
[White "Chigaev, Maksim"]
[Black "Abdurakhmonov, Mukhammadali"]
[WhiteFideId "4108116"]
[BlackFideId "14207346"]
[WhiteElo "2579"]
[BlackElo "2266"]
[Result "1-0"]
[Round "10"]
[TimeControl "180+1"]
[Date "2021.08.17"]
[WhiteClock "0:01:48"]
[BlackClock "0:00:43"]

1. c4 {[%clk 0:03:00]}  c5 {[%clk 0:02:59]} 2. Nf3 {[%clk 0:02:57]}  g6 {[%clk 0:02:57]} 3. Nc3 {[%clk 0:02:55]}  Nc6 {[%clk 0:02:56]} 4. e3 {[%clk 0:02:54]}  Nf6 {[%clk 0:02:52]} 5. d4 {[%clk 0:02:55]}  cxd4 {[%clk 0:02:52]} 6. exd4 {[%clk 0:02:55]}  d5 {[%clk 0:02:41]} 7. cxd5 {[%clk 0:02:56]}  Nxd5 {[%clk 0:02:41]} 8. Qb3 {[%clk 0:02:56]}  Nxc3 {[%clk 0:02:23]} 9. Bc4 {[%clk 0:02:55]}  e6 {[%clk 0:02:23]} 10. bxc3 {[%clk 0:02:55]}  Bg7 {[%clk 0:02:23]} 11. Ba3 {[%clk 0:02:53]}  Bf8 {[%clk 0:02:22]} 12. O-O {[%clk 0:02:53]}  Bxa3 {[%clk 0:02:01]} 13. Qxa3 {[%clk 0:02:54]}  Qe7 {[%clk 0:02:01]} 14. Qb2 {[%clk 0:02:52]}  O-O {[%clk 0:01:58]} 15. Rfe1 {[%clk 0:02:53]}  Qf6 {[%clk 0:01:55]} 16. Bb5 {[%clk 0:02:41]}  Bd7 {[%clk 0:01:45]} 17. Rad1 {[%clk 0:02:41]}  Rfd8 {[%clk 0:01:43]} 18. h4 {[%clk 0:02:33]}  Rac8 {[%clk 0:01:37]} 19. h5 {[%clk 0:02:30]}  b6 {[%clk 0:01:36]} 20. h6 {[%clk 0:02:24]}  Qf4 {[%clk 0:01:34]} 21. d5 {[%clk 0:02:16]}  exd5 {[%clk 0:01:30]} 22. Rxd5 {[%clk 0:02:08]}  Be6 {[%clk 0:01:29]} 23. Bxc6 {[%clk 0:01:55]}  Bxd5 {[%clk 0:00:53]} 24. c4 {[%clk 0:01:48]}  Qxh6 {[%clk 0:00:43]} 25. Bxd5 {[%clk 0:01:48]}  Qg7 {[%clk 0:00:44]} 26. Qxg7+ {[%clk 0:01:48]}  Kxg7 {[%clk 0:00:43]} 27. Re7 {[%clk 0:01:48]} 1-0


[Site "https://www.chess.com"]

[Event "Titled Tuesday Blitz August 17 2021"]
[White "Damjanovic, Vladimir"]
[Black "Rustemov, Alexander"]
[WhiteFideId "903795"]
[BlackFideId "4119002"]
[WhiteElo "2374"]
[BlackElo "2703"]
[Result "1-0"]
[Round "10"]
[TimeControl "180+1"]
[Date "2021.08.17"]
[WhiteClock "0:00:10"]
[BlackClock "0:00:07"]

1. d4 {[%clk 0:03:00]}  d5 {[%clk 0:02:49]} 2. Nc3 {[%clk 0:03:01]}  Bf5 {[%clk 0:02:40]} 3. Bf4 {[%clk 0:03:01]}  a6 {[%clk 0:02:33]} 4. e3 {[%clk 0:02:59]}  Nf6 {[%clk 0:02:32]} 5. f3 {[%clk 0:02:59]}  h5 {[%clk 0:02:14]} 6. Bd3 {[%clk 0:02:55]}  Bxd3 {[%clk 0:02:13]} 7. Qxd3 {[%clk 0:02:50]}  e6 {[%clk 0:02:12]} 8. O-O-O {[%clk 0:02:45]}  c5 {[%clk 0:02:02]} 9. dxc5 {[%clk 0:02:46]}  Bxc5 {[%clk 0:02:00]} 10. e4 {[%clk 0:02:46]}  d4 {[%clk 0:01:54]} 11. Nce2 {[%clk 0:02:45]}  Nc6 {[%clk 0:01:53]} 12. Nh3 {[%clk 0:02:31]}  Rc8 {[%clk 0:01:50]} 13. a3 {[%clk 0:02:28]}  Nd7 {[%clk 0:01:47]} 14. Kb1 {[%clk 0:02:20]}  b5 {[%clk 0:01:36]} 15. Nc1 {[%clk 0:02:04]}  e5 {[%clk 0:01:19]} 16. Bg5 {[%clk 0:02:02]}  f6 {[%clk 0:01:19]} 17. Bd2 {[%clk 0:01:53]}  Nb6 {[%clk 0:01:18]} 18. Nb3 {[%clk 0:01:51]}  Qe7 {[%clk 0:01:14]} 19. c3 {[%clk 0:01:17]}  Nc4 {[%clk 0:01:11]} 20. Nxc5 {[%clk 0:01:16]}  Qxc5 {[%clk 0:01:11]} 21. cxd4 {[%clk 0:01:16]}  Nxd4 {[%clk 0:01:09]} 22. Bb4 {[%clk 0:01:15]}  Qb6 {[%clk 0:01:05]} 23. Bc3 {[%clk 0:01:08]}  a5 {[%clk 0:01:02]} 24. Bxd4 {[%clk 0:01:08]}  exd4 {[%clk 0:01:00]} 25. Qxd4 {[%clk 0:01:06]}  Qxd4 {[%clk 0:00:51]} 26. Rxd4 {[%clk 0:01:06]}  O-O {[%clk 0:00:46]} 27. Nf4 {[%clk 0:00:57]}  h4 {[%clk 0:00:46]} 28. g3 {[%clk 0:00:51]}  hxg3 {[%clk 0:00:39]} 29. hxg3 {[%clk 0:00:51]}  Rfd8 {[%clk 0:00:39]} 30. Rhd1 {[%clk 0:00:49]}  Rxd4 {[%clk 0:00:39]} 31. Rxd4 {[%clk 0:00:50]}  a4 {[%clk 0:00:34]} 32. Nd5 {[%clk 0:00:48]}  Kf7 {[%clk 0:00:32]} 33. Nc3 {[%clk 0:00:48]}  Rc5 {[%clk 0:00:25]} 34. Kc2 {[%clk 0:00:20]}  Ne5 {[%clk 0:00:22]} 35. f4 {[%clk 0:00:17]}  Nc4 {[%clk 0:00:16]} 36. Rd7+ {[%clk 0:00:15]}  Kg6 {[%clk 0:00:12]} 37. f5+ {[%clk 0:00:15]}  Kh6 {[%clk 0:00:12]} 38. Rb7 {[%clk 0:00:05]}  Nd6 {[%clk 0:00:11]} 39. Re7 {[%clk 0:00:05]}  Nc4 {[%clk 0:00:06]} 40. Kb1 {[%clk 0:00:04]}  Nd2+ {[%clk 0:00:06]} 41. Ka2 {[%clk 0:00:04]}  Nc4 {[%clk 0:00:05]} 42. Rb7 {[%clk 0:00:04]}  Nd6 {[%clk 0:00:05]} 43. Rb6 {[%clk 0:00:04]}  Nc4 {[%clk 0:00:02]} 44. Rxb5 {[%clk 0:00:04]}  Rc7 {[%clk 0:00:03]} 45. Nxa4 {[%clk 0:00:04]}  Ne5 {[%clk 0:00:03]} 46. Nc3 {[%clk 0:00:04]}  Kg5 {[%clk 0:00:03]} 47. a4 {[%clk 0:00:03]}  Kg4 {[%clk 0:00:03]} 48. a5 {[%clk 0:00:03]}  Kxg3 {[%clk 0:00:04]} 49. a6 {[%clk 0:00:04]}  Ra7 {[%clk 0:00:04]} 50. Rb6 {[%clk 0:00:02]}  Nd7 {[%clk 0:00:03]} 51. Rd6 {[%clk 0:00:02]}  Nc5 {[%clk 0:00:03]} 52. b4 {[%clk 0:00:02]}  Rxa6+ {[%clk 0:00:03]} 53. Rxa6 {[%clk 0:00:02]}  Nxa6 {[%clk 0:00:04]} 54. b5 {[%clk 0:00:03]}  Nb8 {[%clk 0:00:03]} 55. Kb3 {[%clk 0:00:03]}  Kf3 {[%clk 0:00:04]} 56. Kc4 {[%clk 0:00:04]}  Ke3 {[%clk 0:00:04]} 57. Kd5 {[%clk 0:00:04]}  Kd3 {[%clk 0:00:04]} 58. Na4 {[%clk 0:00:05]}  Nd7 {[%clk 0:00:04]} 59. Nc5+ {[%clk 0:00:05]}  Nxc5 {[%clk 0:00:03]} 60. Kxc5 {[%clk 0:00:06]}  Kxe4 {[%clk 0:00:04]} 61. b6 {[%clk 0:00:06]}  Kxf5 {[%clk 0:00:05]} 62. b7 {[%clk 0:00:07]}  g5 {[%clk 0:00:05]} 63. b8=Q {[%clk 0:00:08]}  Kg4 {[%clk 0:00:06]} 64. Qc8+ {[%clk 0:00:08]}  f5 {[%clk 0:00:07]} 65. Kd5 {[%clk 0:00:08]}  Kf4 {[%clk 0:00:06]} 66. Ke6 {[%clk 0:00:08]}  g4 {[%clk 0:00:05]} 67. Qf8 {[%clk 0:00:09]}  Kg5 {[%clk 0:00:06]} 68. Qxf5+ {[%clk 0:00:10]}  Kh4 {[%clk 0:00:07]} 69. Qh7+ {[%clk 0:00:10]}  Kg3 {[%clk 0:00:07]} 70. Kf5 {[%clk 0:00:10]}  Kf3 {[%clk 0:00:07]} 71. Qh1+ {[%clk 0:00:10]}  Kf2 {[%clk 0:00:07]} 72. Kxg4 {[%clk 0:00:10]} 1-0


[Site "https://www.chess.com"]

[Event "Titled Tuesday Blitz August 17 2021"]
[White "Dobrowolski, Piotr"]
[Black "Maksimovic, Bojan"]
[WhiteFideId "1106236"]
[BlackFideId "14408120"]
[WhiteElo "2296"]
[BlackElo "2439"]
[Result "0-1"]
[Round "10"]
[TimeControl "180+1"]
[Date "2021.08.17"]
[WhiteClock "0:00:03"]
[BlackClock "0:00:20"]

1. e4 {[%clk 0:03:00]}  c5 {[%clk 0:02:59]} 2. Nf3 {[%clk 0:03:00]}  Nc6 {[%clk 0:03:00]} 3. d4 {[%clk 0:03:00]}  cxd4 {[%clk 0:03:00]} 4. Nxd4 {[%clk 0:03:01]}  Nf6 {[%clk 0:03:01]} 5. Nc3 {[%clk 0:03:01]}  e5 {[%clk 0:03:01]} 6. Ndb5 {[%clk 0:03:01]}  h6 {[%clk 0:03:02]} 7. Nd5 {[%clk 0:02:54]}  Nxd5 {[%clk 0:03:00]} 8. exd5 {[%clk 0:02:55]}  a6 {[%clk 0:03:01]} 9. Nc3 {[%clk 0:02:36]}  Nd4 {[%clk 0:03:01]} 10. Bd3 {[%clk 0:02:25]}  g6 {[%clk 0:03:01]} 11. O-O {[%clk 0:02:24]}  d6 {[%clk 0:02:59]} 12. f4 {[%clk 0:02:21]}  Bg7 {[%clk 0:02:57]} 13. Kh1 {[%clk 0:02:02]}  O-O {[%clk 0:02:55]} 14. Qe1 {[%clk 0:02:01]}  f5 {[%clk 0:02:50]} 15. fxe5 {[%clk 0:01:45]}  dxe5 {[%clk 0:02:51]} 16. Be3 {[%clk 0:01:33]}  e4 {[%clk 0:02:49]} 17. Bxd4 {[%clk 0:01:33]}  Bxd4 {[%clk 0:02:49]} 18. Bc4 {[%clk 0:01:33]}  Qd6 {[%clk 0:02:37]} 19. Rd1 {[%clk 0:01:30]}  Be5 {[%clk 0:02:31]} 20. Qh4 {[%clk 0:01:29]}  Kg7 {[%clk 0:02:27]} 21. Bb3 {[%clk 0:01:25]}  Bd7 {[%clk 0:02:25]} 22. g4 {[%clk 0:01:14]}  Bxc3 {[%clk 0:02:08]} 23. bxc3 {[%clk 0:01:13]}  fxg4 {[%clk 0:02:08]} 24. Qg3 {[%clk 0:00:38]}  Qxg3 {[%clk 0:02:05]} 25. hxg3 {[%clk 0:00:39]}  Rf3 {[%clk 0:02:02]} 26. Kg2 {[%clk 0:00:36]}  Re8 {[%clk 0:01:57]} 27. c4 {[%clk 0:00:30]}  b6 {[%clk 0:01:54]} 28. d6 {[%clk 0:00:27]}  h5 {[%clk 0:01:34]} 29. c5 {[%clk 0:00:27]}  bxc5 {[%clk 0:01:14]} 30. Bd5 {[%clk 0:00:28]}  Re5 {[%clk 0:01:08]} 31. c4 {[%clk 0:00:26]}  Kf6 {[%clk 0:00:56]} 32. Rb1 {[%clk 0:00:22]}  Ref5 {[%clk 0:00:25]} 33. Bxe4 {[%clk 0:00:12]}  Rxf1 {[%clk 0:00:25]} 34. Rxf1 {[%clk 0:00:13]}  Rxf1 {[%clk 0:00:26]} 35. Kxf1 {[%clk 0:00:13]}  Be8 {[%clk 0:00:26]} 36. Ke2 {[%clk 0:00:11]}  Ke6 {[%clk 0:00:25]} 37. Ke3 {[%clk 0:00:10]}  g5 {[%clk 0:00:23]} 38. a4 {[%clk 0:00:07]}  a5 {[%clk 0:00:21]} 39. Bc2 {[%clk 0:00:07]}  Kxd6 {[%clk 0:00:20]} 40. Bd1 {[%clk 0:00:07]}  Ke5 {[%clk 0:00:20]} 41. Bc2 {[%clk 0:00:07]}  h4 {[%clk 0:00:19]} 42. Bd1 {[%clk 0:00:06]}  Bd7 {[%clk 0:00:19]} 43. Kf2 {[%clk 0:00:05]}  h3 {[%clk 0:00:19]} 44. Kg1 {[%clk 0:00:03]}  Kd4 {[%clk 0:00:19]} 45. Kh2 {[%clk 0:00:03]}  Kxc4 {[%clk 0:00:20]} 0-1


[Site "https://www.chess.com"]

[Event "Titled Tuesday Blitz August 17 2021"]
[White "Fajdetic, Hrvoje"]
[Black "Balabayeva, Xeniya"]
[WhiteFideId "14501945"]
[BlackFideId "13719688"]
[WhiteElo "2153"]
[BlackElo "1988"]
[Result "0-1"]
[Round "10"]
[TimeControl "180+1"]
[Date "2021.08.18"]
[WhiteClock "0:00:28"]
[BlackClock "0:00:23"]

1. d4 {[%clk 0:03:00]}  d5 {[%clk 0:02:59]} 2. Bf4 {[%clk 0:02:58]}  Nf6 {[%clk 0:02:55]} 3. e3 {[%clk 0:02:58]}  c5 {[%clk 0:02:55]} 4. Nc3 {[%clk 0:02:57]}  Bg4 {[%clk 0:02:49]} 5. f3 {[%clk 0:02:56]}  Bd7 {[%clk 0:02:47]} 6. dxc5 {[%clk 0:02:42]}  e6 {[%clk 0:02:17]} 7. b4 {[%clk 0:02:38]}  Na6 {[%clk 0:02:07]} 8. a3 {[%clk 0:02:32]}  Be7 {[%clk 0:02:06]} 9. Bd3 {[%clk 0:02:25]}  Nh5 {[%clk 0:02:00]} 10. Be5 {[%clk 0:02:16]}  Bf6 {[%clk 0:01:59]} 11. Bxf6 {[%clk 0:01:45]}  Qxf6 {[%clk 0:01:54]} 12. Qd2 {[%clk 0:01:41]}  O-O {[%clk 0:01:52]} 13. Nge2 {[%clk 0:01:39]}  Nc7 {[%clk 0:01:47]} 14. g4 {[%clk 0:01:32]}  Qh4+ {[%clk 0:01:47]} 15. Kf1 {[%clk 0:01:23]}  Nf6 {[%clk 0:01:39]} 16. Qe1 {[%clk 0:01:10]}  Qh3+ {[%clk 0:01:35]} 17. Kf2 {[%clk 0:01:08]}  e5 {[%clk 0:01:34]} 18. Ng3 {[%clk 0:01:03]}  e4 {[%clk 0:01:30]} 19. Bf1 {[%clk 0:01:03]}  Qh4 {[%clk 0:01:24]} 20. h3 {[%clk 0:00:51]}  exf3 {[%clk 0:00:56]} 21. Kxf3 {[%clk 0:00:52]}  Rae8 {[%clk 0:00:48]} 22. Qf2 {[%clk 0:00:46]}  d4 {[%clk 0:00:27]} 23. exd4 {[%clk 0:00:45]}  Bc6+ {[%clk 0:00:26]} 24. d5 {[%clk 0:00:38]}  Ncxd5 {[%clk 0:00:26]} 25. Nxd5 {[%clk 0:00:34]}  Bxd5+ {[%clk 0:00:25]} 26. Kf4 {[%clk 0:00:32]}  Qh6+ {[%clk 0:00:24]} 27. g5 {[%clk 0:00:31]}  Qh4+ {[%clk 0:00:23]} 28. Kf5 {[%clk 0:00:30]}  g6+ {[%clk 0:00:23]} 29. Kxf6 {[%clk 0:00:28]}  Re6# {[%clk 0:00:23]} 0-1


[Site "https://www.chess.com"]

[Event "Titled Tuesday Blitz August 17 2021"]
[White "Garv Gaur"]
[Black "Eternauta2400"]
[WhiteFideId "45030839"]
[WhiteElo "1950"]
[BlackElo "2560"]
[Result "1-0"]
[Round "10"]
[TimeControl "180+1"]
[Date "2021.08.17"]
[WhiteClock "0:00:19"]
[BlackClock "0:00:20"]

1. d4 {[%clk 0:03:00]}  Nf6 {[%clk 0:02:58]} 2. Nf3 {[%clk 0:03:01]}  d5 {[%clk 0:02:57]} 3. c4 {[%clk 0:03:01]}  e6 {[%clk 0:02:57]} 4. g3 {[%clk 0:03:01]}  dxc4 {[%clk 0:02:56]} 5. Bg2 {[%clk 0:03:01]}  Nbd7 {[%clk 0:02:55]} 6. O-O {[%clk 0:03:01]}  a6 {[%clk 0:02:54]} 7. a4 {[%clk 0:02:59]}  Rb8 {[%clk 0:02:53]} 8. a5 {[%clk 0:02:37]}  b5 {[%clk 0:02:52]} 9. axb6 {[%clk 0:02:37]}  cxb6 {[%clk 0:02:53]} 10. Bf4 {[%clk 0:02:37]}  Bb7 {[%clk 0:02:47]} 11. Bxb8 {[%clk 0:02:36]}  Qxb8 {[%clk 0:02:48]} 12. b3 {[%clk 0:02:32]}  cxb3 {[%clk 0:02:46]} 13. Qxb3 {[%clk 0:02:33]}  Be7 {[%clk 0:02:46]} 14. Nc3 {[%clk 0:02:31]}  O-O {[%clk 0:02:45]} 15. Rfc1 {[%clk 0:02:29]}  h6 {[%clk 0:02:41]} 16. Ne5 {[%clk 0:02:19]}  Nxe5 {[%clk 0:02:37]} 17. dxe5 {[%clk 0:02:17]}  Nd7 {[%clk 0:02:37]} 18. Bxb7 {[%clk 0:02:07]}  Qxb7 {[%clk 0:02:35]} 19. Ne4 {[%clk 0:01:59]}  Qxe4 {[%clk 0:02:29]} 20. Rc7 {[%clk 0:01:59]}  Qd4 {[%clk 0:02:26]} 21. Rd1 {[%clk 0:01:57]}  Qxe5 {[%clk 0:02:21]} 22. Rcxd7 {[%clk 0:01:51]}  Bc5 {[%clk 0:02:20]} 23. e3 {[%clk 0:01:51]}  a5 {[%clk 0:02:15]} 24. Rd8 {[%clk 0:01:50]}  Rxd8 {[%clk 0:02:12]} 25. Rxd8+ {[%clk 0:01:50]}  Kh7 {[%clk 0:02:13]} 26. Qd3+ {[%clk 0:01:43]}  g6 {[%clk 0:02:11]} 27. Qd7 {[%clk 0:01:41]}  Qf6 {[%clk 0:01:57]} 28. Qe8 {[%clk 0:01:37]}  h5 {[%clk 0:01:47]} 29. Rd7 {[%clk 0:01:32]}  Kg7 {[%clk 0:01:45]} 30. Rd8 {[%clk 0:01:32]}  Kh6 {[%clk 0:01:41]} 31. h4 {[%clk 0:01:28]}  a4 {[%clk 0:01:36]} 32. Rd7 {[%clk 0:01:28]}  Kg7 {[%clk 0:01:21]} 33. Rd8 {[%clk 0:01:23]}  Kh6 {[%clk 0:01:20]} 34. Rd7 {[%clk 0:01:19]}  Kg7 {[%clk 0:01:20]} 35. Rd8 {[%clk 0:00:52]}  g5 {[%clk 0:01:13]} 36. Qg8+ {[%clk 0:00:43]}  Kh6 {[%clk 0:01:13]} 37. hxg5+ {[%clk 0:00:41]}  Qxg5 {[%clk 0:01:13]} 38. Qh8+ {[%clk 0:00:41]}  Kg6 {[%clk 0:01:13]} 39. Rg8+ {[%clk 0:00:41]}  Kf5 {[%clk 0:01:13]} 40. e4+ {[%clk 0:00:40]}  Kg4 {[%clk 0:01:13]} 41. Rxg5+ {[%clk 0:00:37]}  Kxg5 {[%clk 0:01:13]} 42. Qe5+ {[%clk 0:00:35]}  Kg6 {[%clk 0:01:06]} 43. Qc3 {[%clk 0:00:34]}  a3 {[%clk 0:01:05]} 44. Kg2 {[%clk 0:00:33]}  Kg5 {[%clk 0:00:58]} 45. f4+ {[%clk 0:00:33]}  Kg6 {[%clk 0:00:57]} 46. Kh3 {[%clk 0:00:32]}  Be7 {[%clk 0:00:52]} 47. g4 {[%clk 0:00:30]}  hxg4+ {[%clk 0:00:51]} 48. Kxg4 {[%clk 0:00:31]}  f5+ {[%clk 0:00:50]} 49. exf5+ {[%clk 0:00:32]}  exf5+ {[%clk 0:00:50]} 50. Kf3 {[%clk 0:00:33]}  Bc5 {[%clk 0:00:41]} 51. Ke2 {[%clk 0:00:33]}  Kh5 {[%clk 0:00:39]} 52. Qg3 {[%clk 0:00:32]}  Be7 {[%clk 0:00:36]} 53. Qb3 {[%clk 0:00:26]}  Bc5 {[%clk 0:00:33]} 54. Kf3 {[%clk 0:00:24]}  Kg6 {[%clk 0:00:32]} 55. Qg8+ {[%clk 0:00:23]}  Kf6 {[%clk 0:00:32]} 56. Ke2 {[%clk 0:00:23]}  Ke7 {[%clk 0:00:24]} 57. Kd3 {[%clk 0:00:23]}  Kd6 {[%clk 0:00:24]} 58. Qg6+ {[%clk 0:00:21]}  Kd5 {[%clk 0:00:23]} 59. Qxf5+ {[%clk 0:00:20]}  Kc6 {[%clk 0:00:24]} 60. Qe6+ {[%clk 0:00:20]}  Kb5 {[%clk 0:00:23]} 61. Qc4+ {[%clk 0:00:20]}  Kc6 {[%clk 0:00:23]} 62. f5 {[%clk 0:00:20]}  b5 {[%clk 0:00:23]} 63. Qe6+ {[%clk 0:00:20]}  Bd6 {[%clk 0:00:23]} 64. f6 {[%clk 0:00:20]}  b4 {[%clk 0:00:20]} 65. f7 {[%clk 0:00:20]}  Kc7 {[%clk 0:00:20]} 66. Qxd6+ {[%clk 0:00:19]} 1-0


[Site "https://www.chess.com"]